bitfinex/quotes_SOLUSD_20251126
["timestamp","ask_amount","ask_price","bid_price","bid_amount"]
[1764168209323,8.80994492,137.14,137.13,7.37754183]
[1764168209704,8.80994492,137.16,137.11,26.19694915]
[1764168209922,8.80994492,137.16,137.13,7.37754183]
[1764168210426,8.80994492,137.14,137.11,32.90449098]
[1764168210897,8.80994492,137.14,137.12,7.37754183]
[1764168211099,8.80994492,137.12,137.1,7.49375016]
[1764168211321,8.80994492,137.12,137.1,14.87129199]
[1764168211519,23.68640583,137.15,137.1,14.87129199]
[1764168211520,9.51994492,137.14,137.1,14.87129199]
[1764168211728,9.51994492,137.14,137.1,33.10615705]
[1764168211912,0.71,137.13,137.1,33.10615705]
[1764168212313,8.80994492,137.14,137.1,33.10615705]
[1764168212621,8.80994492,137.14,137.1,25.72861522]
[1764168212824,0.71,137.13,137.1,14.87129199]
[1764168213548,8.80994492,137.12,137.1,7.49375016]
[1764168213718,8.80994492,137.12,137.1,14.87129199]
[1764168214406,25.11880892,137.11,137.1,25.72861522]
[1764168215227,25.11880892,137.11,137.1,7.49375016]
[1764168215434,0.28432314,137.16,137.1,7.49375016]
[1764168215435,8.80994492,137.16,137.1,33.77615705]
[1764168215620,8.80994492,137.16,137.13,7.37754183]
[1764168215931,16.308864,137.14,137.13,7.37754183]
[1764168216300,16.308864,137.14,137.13,14.66989215]
[1764168216928,25.82880892,137.14,137.1,7.57754183]
[1764168217127,25.11880892,137.14,137.12,7.37754183]
[1764168217309,25.11880892,137.14,137.13,7.37754183]
[1764168217507,25.11880892,137.14,137.12,7.37754183]
[1764168218214,25.82880892,137.14,137.12,7.37754183]
[1764168218618,25.82880892,137.14,137.11,25.52672024]
[1764168218816,25.11880892,137.14,137.12,7.37754183]
[1764168219626,25.11880892,137.14,137.13,7.37754183]
[1764168220011,8.80994492,137.15,137.13,7.37754183]
[1764168220219,16.308864,137.14,137.13,7.37754183]
[1764168220713,25.11880892,137.14,137.13,14.66989215]
[1764168220911,8.80994492,137.14,137.13,14.66989215]
[1764168221112,8.80994492,137.13,137.12,7.2925778]
[1764168221328,8.80994492,137.13,137.12,14.67011963]
[1764168221927,9.51994492,137.15,137.12,7.37754183]
[1764168222313,9.51994492,137.15,137.13,7.37754183]
[1764168222624,9.51994492,137.15,137.13,14.66962704]
[1764168223431,9.51994492,137.15,137.13,7.29208521]
[1764168223730,9.51994492,137.15,137.13,14.66962704]
[1764168223928,9.51994492,137.15,137.13,7.37754183]
[1764168224118,9.52994492,137.15,137.12,14.67021631]
[1764168224724,0.72,137.14,137.12,14.67021631]
[1764168224925,25.11880892,137.12,137.1,0.2]
[1764168225132,8.80994492,137.07,137.02,7.29802877]
[1764168225329,8.80994492,137.03,137.01,7.47754183]
[1764168225510,8.80994492,137.03,137.01,0.1]
[1764168225713,8.80994492,137.03,137.01,7.47754183]
[1764168226034,8.80994492,137.05,137.01,14.77616516]
[1764168226239,8.80994492,137.03,137.01,7.39862333]
[1764168226734,7.37754183,137.03,137.01,0.1]
[1764168226909,33.21635075,137.02,137.01,0.1]
[1764168227118,33.50067389,137.02,137.01,0.1]
[1764168227318,0.28432314,137.0,136.99,0.1]
[1764168227511,16.47180989,137.0,136.99,0.1]
[1764168227734,17.19180989,137.0,136.99,0.1]
[1764168228434,9.81426806,137.0,136.99,0.1]
[1764168228625,17.19180989,137.0,136.99,0.1]
[1764168228806,9.81426806,137.0,136.99,0.1]
[1764168229013,24.49107996,137.0,136.99,0.1]
[1764168229215,27.77107996,137.0,136.99,0.1]
[1764168230131,13.09426806,137.0,136.99,0.1]
[1764168230440,28.39880892,137.0,136.99,0.1]
[1764168231014,8.80994492,137.0,136.99,8.19754183]
[1764168231545,25.11880892,137.0,136.99,0.1]
[1764168231721,33.21635075,137.0,136.99,0.1]
[1764168232040,25.83880892,137.0,136.99,0.1]
[1764168232443,25.11880892,137.0,136.99,0.1]
[1764168233127,25.11880892,137.0,136.99,7.47754183]
[1764168233323,25.11880892,137.0,136.99,0.1]
[1764168233729,25.11880892,137.0,136.99,7.47754183]
[1764168234360,25.11880892,137.0,136.99,0.1]
[1764168235025,25.11880892,137.0,136.99,7.3998029]
[1764168235534,25.11880892,137.0,136.99,15.49734473]
[1764168235535,8.80994492,137.0,136.99,15.49734473]
[1764168235922,25.11880892,137.0,136.99,7.3998029]
[1764168237142,25.11880892,137.0,136.99,0.1]
[1764168238236,25.83880892,137.0,136.99,0.1]
[1764168238435,39.00769513,137.0,136.99,0.1]
[1764168238822,29.9981012,137.0,136.99,0.1]
[1764168239022,25.11880892,136.97,136.96,0.2]
[1764168239740,25.11880892,136.97,136.96,7.50140186]
[1764168240542,25.11880892,136.97,136.9,0.1]
[1764168240543,8.80994492,136.92,136.9,0.1]
[1764168240752,8.80994492,136.91,136.9,0.1]
[1764168241159,21.69450799,136.91,136.9,0.1]
[1764168241359,22.69883113,136.91,136.9,0.1]
[1764168241542,9.52994492,136.91,136.9,0.1]
[1764168241750,8.80994492,136.91,136.9,0.1]
[1764168242146,8.80994492,136.92,136.9,0.82]
[1764168242344,8.80994492,136.92,136.9,13.70456307]
[1764168242549,8.80994492,136.92,136.91,13.60456307]
[1764168242744,29.19342707,136.95,136.91,13.60456307]
[1764168242745,16.308864,136.95,136.91,13.60456307]
[1764168242948,0.72,137.01,136.94,12.88456307]
[1764168243152,0.72,137.01,136.96,12.88456307]
[1764168243153,16.308864,136.98,136.96,12.88456307]
[1764168243350,8.80994492,136.97,136.96,12.88456307]
[1764168243572,8.80994492,136.98,136.94,0.72]
[1764168243752,8.80994492,136.98,136.94,13.60456307]
[1764168244046,8.80994492,136.99,136.96,12.88456307]
[1764168244452,8.80994492,137.01,136.97,13.60456307]
[1764168244649,8.80994492,137.01,136.97,0.72]
[1764168244868,22.41450799,137.01,136.96,12.88456307]
[1764168245167,22.41450799,137.01,136.97,7.3008688]
[1764168246040,8.80994492,136.99,136.97,7.3008688]
[1764168246236,21.69450799,136.99,136.96,7.30130866]
[1764168246857,8.80994492,136.99,136.96,7.30130866]
[1764168247065,8.80994492,136.99,136.96,7.96130866]
[1764168247471,12.88456307,137.01,136.96,38.4393764]
[1764168247643,16.308864,137.02,136.99,12.88456307]
[1764168247644,8.80994492,137.02,136.99,12.88456307]
[1764168247843,8.80994492,137.02,136.97,0.66]
[1764168248067,8.80994492,136.99,136.96,25.55481333]
[1764168248455,38.00337199,136.97,136.9,0.1]
[1764168248763,8.80994492,136.91,136.9,0.1]
[1764168248968,8.80994492,136.94,136.9,8.06460189]
[1764168249140,21.69450799,136.94,136.9,26.32610663]
[1764168249848,8.80994492,136.94,136.9,26.32610663]
[1764168250068,38.00337199,136.94,136.9,26.32610663]
[1764168250278,38.00337199,136.94,136.9,8.06460189]
[1764168250442,25.11880892,136.94,136.91,0.66]
[1764168250842,8.80994492,136.95,136.91,13.54456307]
[1764168251150,21.69450799,136.95,136.92,7.30353491]
[1764168251779,8.80994492,136.96,136.93,13.54456307]
[1764168251987,8.80994492,136.96,136.93,0.66]
[1764168252170,8.80994492,136.96,136.93,13.54456307]
[1764168252348,8.80994492,136.96,136.94,13.54456307]
[1764168252852,9.50994492,136.96,136.92,38.44693525]
[1764168253054,8.80994492,136.96,136.92,39.10693525]
[1764168253356,21.69450799,136.96,136.92,26.22237218]
[1764168253550,8.80994492,136.96,136.92,39.10693525]
[1764168254149,21.69450799,136.96,136.92,26.22237218]
[1764168254359,12.88456307,136.95,136.92,25.56237218]
[1764168254560,8.80994492,136.93,136.92,7.30353491]
[1764168255379,8.80994492,136.93,136.9,25.66588912]
[1764168255749,8.80994492,136.93,136.9,26.38588912]
[1764168255950,21.69450799,136.93,136.9,25.66588912]
[1764168256150,8.80994492,136.93,136.9,26.38588912]
[1764168257458,22.37450799,136.93,136.9,25.66588912]
[1764168257658,16.308864,136.91,136.9,7.40460189]
[1764168257863,38.00337199,136.91,136.9,0.1]
[1764168258073,38.68337199,136.91,136.9,0.1]
[1764168258680,38.96769513,136.91,136.9,0.1]
[1764168258985,42.24769513,136.91,136.9,0.1]
[1764168259290,49.55176349,136.91,136.9,0.1]
[1764168260473,42.24769513,136.91,136.9,0.1]
[1764168260859,49.55176349,136.91,136.9,0.1]
[1764168261058,28.39880892,136.91,136.9,0.1]
[1764168261790,42.24769513,136.91,136.9,0.1]
[1764168262167,49.55176349,136.91,136.9,0.1]
[1764168262879,42.24769513,136.91,136.9,0.1]
[1764168263177,49.55176349,136.91,136.9,0.1]
[1764168264077,42.24769513,136.91,136.9,0.1]
[1764168264276,41.56769513,136.91,136.9,0.1]
[1764168264497,41.28337199,136.91,136.9,0.1]
[1764168264781,12.08994492,136.91,136.9,0.1]
[1764168265463,28.39880892,136.91,136.9,0.1]
[1764168266780,41.28337199,136.91,136.9,0.1]
[1764168266978,12.08994492,136.91,136.9,0.82]
[1764168267186,8.80994492,136.91,136.9,0.82]
[1764168267486,25.11880892,136.91,136.9,0.1]
[1764168267694,38.00337199,136.91,136.9,0.1]
[1764168267983,25.11880892,136.91,136.9,0.1]
[1764168269886,8.80994492,136.91,136.9,0.82]
[1764168271771,8.80994492,136.91,136.9,8.12460189]
[1764168272587,8.80994492,136.91,136.9,21.00916496]
[1764168274068,8.80994492,136.95,136.9,39.2706697]
[1764168274268,25.11880892,136.95,136.92,12.88456307]
[1764168274481,25.11880892,136.95,136.92,13.60456307]
[1764168274872,25.11880892,136.95,136.92,0.72]
[1764168275078,38.00337199,136.95,136.92,0.72]
[1764168275585,25.11880892,136.95,136.92,0.72]
[1764168275988,38.00337199,136.95,136.92,8.02324341]
[1764168276170,38.00337199,136.95,136.92,7.30324341]
[1764168276374,38.68337199,136.95,136.92,7.30324341]
[1764168276587,25.79880892,136.95,136.92,7.30324341]
[1764168276888,25.11880892,136.95,136.92,20.90780648]
[1764168277090,25.11880892,136.95,136.92,39.16664375]
[1764168278006,25.11880892,136.95,136.93,20.18730109]
[1764168278316,25.11880892,136.95,136.93,7.30273802]
[1764168278609,16.308864,136.97,136.94,13.60456307]
[1764168278777,16.308864,136.96,136.95,13.60456307]
[1764168278975,16.308864,136.96,136.93,25.56024185]
[1764168279276,8.80994492,136.95,136.93,25.56024185]
[1764168280093,8.80994492,136.95,136.93,39.16480492]
[1764168280279,8.80994492,136.95,136.93,38.44480492]
[1764168280596,8.80994492,136.95,136.93,7.30273802]
[1764168280802,8.80994492,136.95,136.92,12.88456307]
[1764168280803,8.80994492,136.95,136.92,20.1879454]
[1764168281114,8.80994492,136.95,136.93,12.88456307]
[1764168281275,8.80994492,136.95,136.93,13.60456307]
[1764168281591,8.80994492,136.95,136.94,12.88456307]
[1764168281898,8.80994492,136.95,136.93,13.60456307]
[1764168282195,8.80994492,136.95,136.94,7.30246823]
[1764168285203,16.308864,136.96,136.94,39.15320188]
[1764168285495,8.80994492,136.95,136.94,7.30246823]
[1764168285699,8.80994492,136.95,136.94,20.1870313]
[1764168286491,8.80994492,136.95,136.94,20.8970313]
[1764168287702,8.80994492,136.95,136.94,7.30246823]
[1764168288211,8.80994492,136.95,136.94,20.1870313]
[1764168289073,8.80994492,136.95,136.94,20.8970313]
[1764168289991,8.80994492,136.95,136.94,20.1870313]
[1764168290198,8.80994492,136.95,136.94,7.30246823]
[1764168290881,8.80994492,136.95,136.94,20.1870313]
[1764168293499,8.80994492,136.95,136.94,7.30246823]
[1764168294112,8.80994492,136.95,136.94,20.1870313]
[1764168294328,8.80994492,136.95,136.94,20.8970313]
[1764168294818,8.80994492,136.95,136.94,20.1870313]
[1764168297006,8.80994492,136.95,136.94,20.8970313]
[1764168297902,8.80994492,136.95,136.94,7.30246823]
[1764168298101,8.80994492,136.95,136.94,20.1870313]
[1764168298622,8.80994492,136.95,136.94,14.70860064]
[1764168300321,7.40613241,137.0,136.94,15.41860064]
[1764168300489,16.308864,136.98,136.97,7.40613241]
[1764168300690,33.55992914,137.07,136.97,8.11613241]
[1764168300920,0.72,137.06,137.02,7.40613241]
[1764168301213,0.72,137.06,137.03,14.7032935]
[1764168301392,3.28,137.07,137.05,7.40613241]
[1764168301597,0.72,137.06,137.03,7.29716109]
[1764168301912,16.308864,137.03,137.0,7.40613241]
[1764168302115,8.80994492,137.02,137.01,7.40613241]
[1764168303209,8.80994492,137.02,137.01,8.11613241]
[1764168303418,8.80994492,137.02,137.01,14.70486972]
[1764168303924,0.72,137.08,137.01,33.66171301]
[1764168304096,8.80994492,137.07,137.05,7.40613241]
[1764168304301,8.80994492,137.05,137.04,7.40613241]
[1764168304821,8.12613241,137.08,137.04,7.40613241]
[1764168304999,8.80994492,137.07,137.04,7.40613241]
[1764168305197,25.11880892,137.07,137.04,8.11613241]
[1764168305393,1.06216157,137.1,137.07,7.29554242]
[1764168305394,8.80994492,137.08,137.07,7.29554242]
[1764168305595,0.69,137.08,137.02,0.69]
[1764168305819,0.69,137.08,137.02,7.40613241]
[1764168305820,25.11880892,137.06,137.02,7.40613241]
[1764168306012,16.21607733,137.06,137.01,7.40613241]
[1764168306317,16.21607733,137.02,137.0,7.29927007]
[1764168306518,8.80994492,137.02,137.0,7.29927007]
[1764168306821,8.80994492,137.03,137.0,15.39540248]
[1764168307028,8.80994492,137.03,137.01,7.40613241]
[1764168307323,8.80994492,137.03,137.01,8.09613241]
[1764168307522,3.28,137.05,137.02,33.63984865]
[1764168307701,8.80994492,137.04,137.03,7.40613241]
[1764168307893,8.80994492,137.04,137.02,7.29820464]
[1764168308099,9.49994492,137.04,137.02,7.29820464]
[1764168308322,8.80994492,137.04,137.02,7.29820464]
[1764168308911,8.80994492,137.04,137.02,14.70433705]
[1764168309315,8.80994492,137.04,137.02,15.39433705]
[1764168309622,16.308864,137.05,137.03,8.09613241]
[1764168310101,16.308864,137.05,137.03,0.69]
[1764168310299,9.49994492,137.04,137.02,7.29820464]
[1764168310608,25.11880892,137.03,136.97,15.39700121]
[1764168310805,33.21494133,137.03,136.98,18.94015941]
[1764168311011,33.21494133,137.03,136.98,26.34629182]
[1764168311226,7.40613241,137.02,136.98,26.34629182]
[1764168311438,33.21494133,137.03,136.99,7.40613241]
[1764168311721,7.29572079,137.07,137.02,7.40613241]
[1764168311722,16.21607733,137.07,137.02,7.40613241]
[1764168311930,8.80994492,137.04,137.0,8.09613241]
[1764168312101,8.80994492,137.04,137.01,7.40613241]
[1764168312303,8.80994492,137.04,137.01,8.09613241]
[1764168312498,16.90607733,137.04,137.0,7.40613241]
[1764168312805,8.80994492,137.02,136.99,8.09613241]
[1764168313331,8.80994492,137.02,137.0,7.40613241]
[1764168313514,8.80994492,137.02,137.01,7.40613241]
[1764168313714,8.80994492,137.02,137.01,8.09613241]
[1764168314101,8.80994492,137.02,137.01,7.40613241]
[1764168314404,8.80994492,137.02,136.98,54.75183848]
[1764168314603,8.80994492,137.02,137.01,7.40613241]
[1764168315329,8.80994492,137.04,137.01,7.40613241]
[1764168315500,8.80994492,137.04,137.02,7.29820464]
[1764168315702,9.52994492,137.03,137.02,7.29820464]
[1764168316005,8.80994492,137.03,137.02,7.29820464]
[1764168316427,16.93607733,137.03,136.99,25.54808602]
[1764168316730,16.93607733,137.03,136.99,7.29939577]
[1764168316731,8.80994492,137.0,136.99,7.29939577]
[1764168317220,8.80994492,137.01,136.99,7.29939577]
[1764168317443,8.12613241,137.0,136.93,36.51454426]
[1764168317603,8.80994492,136.97,136.94,25.55863881]
[1764168317806,8.80994492,136.95,136.94,25.55863881]
[1764168318528,3.28,136.97,136.94,33.65477122]
[1764168318920,8.80994492,136.96,136.94,25.55863881]
[1764168319225,8.80994492,136.96,136.94,32.96477122]
[1764168319411,8.80994492,136.96,136.94,33.65477122]
[1764168319808,3.28,136.98,136.94,33.65477122]
[1764168321316,4.0,136.98,136.94,33.65477122]
[1764168322025,11.40613241,136.98,136.94,33.65477122]
[1764168322640,3.11077975,136.95,136.92,25.56178911]
[1764168322850,8.80994492,136.94,136.92,7.30353491]
[1764168323055,8.80994492,136.92,136.91,7.30390775]
[1764168323357,8.80994492,136.92,136.91,7.99390775]
[1764168323547,8.80994492,136.92,136.91,7.30390775]
[1764168323726,8.80994492,136.92,136.9,0.1]
[1764168324057,9.52994492,136.92,136.9,0.1]
[1764168324257,8.80994492,136.92,136.9,0.1]
[1764168324744,7.41110667,136.94,136.9,7.51110667]
[1764168324931,8.80994492,136.95,136.91,0.69]
[1764168325254,8.80994492,136.93,136.91,8.10110667]
[1764168326120,16.308864,136.96,136.92,15.40464158]
[1764168326345,8.80994492,136.95,136.93,7.41110667]
[1764168327645,9.52994492,136.95,136.92,7.30353491]
[1764168327853,4.0,136.94,136.92,7.30353491]
[1764168328018,3.28,136.94,136.92,7.30353491]
[1764168328227,3.28,136.94,136.92,15.40464158]
[1764168328544,8.80994492,136.93,136.92,33.66347885]
[1764168329544,12.08994492,136.95,136.92,33.66347885]
[1764168330735,12.08994492,136.95,136.92,32.97347885]
[1764168331122,12.08994492,136.95,136.93,8.10110667]
[1764168331546,12.08994492,136.95,136.92,32.97347885]
[1764168331733,20.22105159,136.95,136.92,25.56237218]
[1764168332225,20.22105159,136.95,136.92,18.25883727]
[1764168332447,12.08994492,136.95,136.92,18.25883727]
[1764168332659,12.80994492,136.95,136.92,18.25883727]
[1764168332858,12.08994492,136.95,136.92,26.35994394]
[1764168333427,8.80994492,136.95,136.93,8.10110667]
[1764168333675,12.08994492,136.95,136.93,8.10110667]
[1764168334020,12.08994492,136.95,136.94,7.41110667]
[1764168334239,12.08994492,136.95,136.93,0.69]
[1764168334440,12.08994492,136.95,136.94,14.7135749]
[1764168335052,7.41110667,136.99,136.94,15.4035749]
[1764168335264,8.80994492,136.97,136.93,7.41110667]
[1764168335552,8.80994492,136.97,136.9,0.1]
[1764168335553,7.41110667,136.94,136.9,25.77182369]
[1764168335727,8.80994492,136.92,136.9,25.77182369]
[1764168336125,8.80994492,136.92,136.9,26.46182369]
[1764168336426,8.80994492,136.92,136.91,7.30406836]
[1764168337217,8.80994492,136.92,136.91,25.56423927]
[1764168337417,8.80994492,136.92,136.91,7.30406836]
[1764168337770,8.80994492,136.92,136.9,7.40452485]
[1764168337934,3.28,136.92,136.91,0.69]
[1764168338265,25.83880892,136.91,136.9,0.1]
[1764168338436,0.28432314,136.9,136.81,44.05804658]
[1764168338622,16.22105159,136.85,136.83,7.30833881]
[1764168339164,8.80994492,136.85,136.84,0.69]
[1764168339355,7.41110667,136.87,136.84,8.10110667]
[1764168339356,8.80994492,136.87,136.84,8.10110667]
[1764168339528,8.80994492,136.87,136.84,0.69]
[1764168339723,8.80994492,136.87,136.82,0.1]
[1764168339724,16.22105159,136.85,136.82,0.1]
[1764168340056,25.11880892,136.83,136.82,0.1]
[1764168340622,8.80994492,136.83,136.82,0.1]
[1764168341060,25.11880892,136.83,136.82,0.1]
[1764168342235,32.52991559,136.83,136.82,0.1]
[1764168342752,33.24991559,136.83,136.82,0.1]
[1764168344025,25.83880892,136.83,136.82,0.1]
[1764168344262,33.24991559,136.83,136.82,0.1]
[1764168345975,40.5582544,136.83,136.82,0.1]
[1764168346177,33.24991559,136.83,136.82,0.1]
[1764168346341,40.5582544,136.83,136.82,0.1]
[1764168346541,33.24991559,136.83,136.82,0.1]
[1764168347745,40.5582544,136.83,136.82,0.1]
[1764168347949,33.24991559,136.83,136.82,0.1]
[1764168348558,25.11880892,136.83,136.82,0.1]
[1764168348869,33.23991559,136.83,136.82,0.1]
[1764168349086,40.5482544,136.83,136.82,0.1]
[1764168349582,24.52371354,136.83,136.82,0.1]
[1764168349865,40.83257754,136.83,136.82,0.1]
[1764168350042,24.52371354,136.83,136.82,0.1]
[1764168351375,9.80426806,136.83,136.82,0.1]
[1764168351671,17.21537473,136.83,136.82,0.1]
[1764168353585,24.52371354,136.83,136.82,0.1]
[1764168353877,16.93105159,136.83,136.82,0.1]
[1764168354089,16.22105159,136.83,136.82,0.1]
[1764168354476,8.80994492,136.83,136.82,0.76]
[1764168354862,8.80994492,136.83,136.82,8.06887297]
[1764168355063,8.80994492,136.85,136.82,8.06887297]
[1764168355279,25.11880892,136.84,136.83,0.66]
[1764168355587,8.80994492,136.83,136.82,0.1]
[1764168355755,8.80994492,136.83,136.82,7.40887297]
[1764168356260,7.41110667,136.84,136.82,0.1]
[1764168356564,16.93105159,136.83,136.82,0.1]
[1764168356765,8.80994492,136.83,136.82,0.1]
[1764168356986,16.22105159,136.83,136.82,0.1]
[1764168358074,16.93105159,136.83,136.82,0.1]
[1764168358773,8.80994492,136.83,136.82,0.1]
[1764168358973,16.22105159,136.83,136.82,0.1]
[1764168359170,16.93105159,136.83,136.82,0.1]
[1764168359375,16.22105159,136.83,136.82,0.1]
[1764168359573,8.80994492,136.83,136.82,0.1]
[1764168359771,1.99999999,137.0,136.83,0.28432314]
[1764168360072,7.29767204,137.03,136.84,18.96886399]
[1764168360272,2.19999999,137.1,136.95,7.41110667]
[1764168360464,2.19999999,137.1,136.92,9.09426806]
[1764168360465,1.99999999,137.08,136.92,0.28432314]
[1764168360669,2.70999999,137.07,136.94,3.28]
[1764168360865,16.308864,137.0,136.96,7.30140186]
[1764168361099,16.308864,137.0,136.95,31.14510457]
[1764168361100,8.80994492,136.96,136.92,0.66]
[1764168361265,21.70032025,136.96,136.92,0.66]
[1764168361463,8.80994492,136.92,136.88,0.66]
[1764168361681,3.99,137.0,136.91,12.89037533]
[1764168361889,8.80994492,136.99,136.93,12.89037533]
[1764168362192,16.308864,136.96,136.92,13.55037533]
[1764168362581,12.89037533,137.01,136.95,12.89037533]
[1764168362889,16.308864,136.99,136.96,7.96132249]
[1764168363293,8.80994492,136.98,136.94,7.30211815]
[1764168363491,8.80994492,136.98,136.95,0.66]
[1764168363716,21.70032025,136.98,136.95,0.66]
[1764168363893,8.80994492,136.96,136.94,7.30211815]
[1764168364065,8.80994492,136.95,136.92,0.66]
[1764168364387,12.89037533,136.95,136.92,0.66]
[1764168364589,21.70032025,136.93,136.86,0.66]
[1764168364779,8.80994492,136.91,136.87,0.66]
[1764168364982,8.80994492,136.91,136.88,25.56984218]
[1764168365176,12.89037533,136.92,136.88,25.56984218]
[1764168365177,8.80994492,136.93,136.88,38.46021751]
[1764168365385,21.70032025,136.93,136.89,0.66]
[1764168366185,8.80994492,136.93,136.89,0.66]
[1764168366492,21.70032025,136.93,136.89,0.66]
[1764168366992,21.70032025,136.93,136.9,7.30460189]
[1764168367413,21.70032025,136.91,136.87,18.26493494]
[1764168367580,21.70032025,136.9,136.88,7.30566919]
[1764168368396,21.70032025,136.9,136.88,7.98566919]
[1764168368599,16.308864,136.9,136.88,7.98566919]
[1764168368809,29.19923933,136.9,136.88,7.98566919]
[1764168369122,16.308864,136.9,136.88,7.98566919]
[1764168369284,8.80994492,136.92,136.89,0.68]
[1764168370483,21.70032025,136.92,136.89,0.68]
[1764168371006,21.70032025,136.92,136.89,7.98481297]
[1764168371401,21.70032025,136.92,136.89,7.30481297]
[1764168371590,21.70032025,136.92,136.89,7.98481297]
[1764168372307,8.80994492,136.92,136.9,0.68]
[1764168372996,8.80994492,136.92,136.91,7.30406836]
[1764168373199,18.25158222,136.98,136.91,20.19444369]
[1764168373200,0.68,136.98,136.91,20.19444369]
[1764168373507,11.79793824,137.0,136.94,12.89037533]
[1764168373820,20.1259649,137.08,136.92,0.68]
[1764168373821,12.89037533,137.04,136.98,12.89037533]
[1764168373980,12.89037533,137.03,136.98,12.89037533]
[1764168374184,12.89037533,137.01,136.97,3.28]
[1764168374489,8.80994492,137.0,136.97,3.28]
[1764168374692,8.80994492,137.0,136.98,0.72]
[1764168375212,8.80994492,137.0,136.99,7.2998029]
[1764168375397,16.17037533,137.04,136.99,38.43968549]
[1764168375709,12.89037533,137.05,137.0,13.61037533]
[1764168376094,8.80994492,137.04,137.01,0.72]
[1764168376278,25.11880892,137.04,137.01,0.72]
[1764168376685,8.80994492,137.0,136.96,18.97230925]
[1764168376894,8.80994492,137.0,136.97,7.3008688]
[1764168377101,8.80994492,137.0,136.97,8.0208688]
[1764168377491,0.88,137.06,136.99,12.89037533]
[1764168377689,0.2,137.1,137.05,0.14216157]
[1764168378023,0.2,137.1,137.09,12.89037533]
[1764168378313,0.68,137.17,137.09,12.89037533]
[1764168378314,0.68,137.24,137.14,9.09426806]
[1764168378484,0.42319198,137.3,137.21,12.89037533]
[1764168378485,3.81427894,137.23,137.21,12.89037533]
[1764168378689,12.89037533,137.22,137.17,4.0]
[1764168378885,12.89037533,137.21,137.16,12.89037533]
[1764168379114,12.89037533,137.22,137.19,7.28916101]
[1764168379285,12.89037533,137.21,137.19,7.28916101]
[1764168379498,12.89037533,137.21,137.19,8.00916101]
[1764168379692,12.89037533,137.21,137.19,0.72]
[1764168380194,8.80994492,137.22,137.19,0.72]
[1764168380399,12.89037533,137.24,137.19,0.72]
[1764168380700,12.89037533,137.23,137.19,0.72]
[1764168381228,7.77264752,137.26,137.19,8.00899286]
[1764168381419,12.89037533,137.24,137.2,12.89037533]
[1764168381595,16.308864,137.23,137.2,13.61037533]
[1764168382208,16.308864,137.23,137.21,0.72]
[1764168382396,16.308864,137.23,137.19,42.40227073]
[1764168382601,29.19923933,137.23,137.19,8.00899286]
[1764168382797,8.80994492,137.22,137.19,8.00899286]
[1764168383599,8.80994492,137.22,137.2,0.72]
[1764168383805,16.308864,137.23,137.2,13.61037533]
[1764168384011,8.80994492,137.22,137.19,7.28899286]
[1764168384213,8.80994492,137.22,137.19,8.00899286]
[1764168385317,8.80994492,137.22,137.19,20.89936819]
[1764168385495,8.80994492,137.22,137.19,8.00899286]
[1764168385921,16.308864,137.23,137.2,0.72]
[1764168386111,16.308864,137.23,137.2,13.61037533]
[1764168386514,8.80994492,137.24,137.2,13.61037533]
[1764168386716,21.70032025,137.24,137.2,13.61037533]
[1764168387434,21.70032025,137.22,137.17,31.11583523]
[1764168387605,38.00918425,137.22,137.18,7.28969237]
[1764168387803,12.89037533,137.21,137.18,7.28969237]
[1764168388005,16.308864,137.18,137.13,3.28]
[1764168388308,25.11880892,137.17,137.13,16.17037533]
[1764168388514,25.11880892,137.17,137.14,12.89037533]
[1764168388717,25.11880892,137.17,137.14,13.61037533]
[1764168389113,25.11880892,137.17,137.14,0.72]
[1764168389315,25.11880892,137.17,137.14,13.61037533]
[1764168389517,13.57037533,137.16,137.12,20.18274879]
[1764168389727,9.48994492,137.15,137.12,7.29237346]
[1764168389901,9.48994492,137.15,137.11,20.1836406]
[1764168390103,8.80994492,137.15,137.11,20.1836406]
[1764168390315,8.80994492,137.15,137.12,0.72]
[1764168390909,8.80994492,137.15,137.12,13.61037533]
[1764168391418,8.80994492,137.15,137.13,7.29235032]
[1764168391849,8.80994492,137.16,137.13,39.13360146]
[1764168392507,8.80994492,137.16,137.14,0.72]
[1764168392728,8.80994492,137.16,137.13,39.13360146]
[1764168393551,21.70032025,137.21,137.15,12.89037533]
[1764168393713,21.70032025,137.21,137.14,0.72]
[1764168393714,21.70032025,137.21,137.16,3.28]
[1764168394046,8.80994492,137.19,137.15,12.89037533]
[1764168394345,21.70032025,137.22,137.17,12.89037533]
[1764168394511,8.80994492,137.19,137.14,4.0]